Cogmind - Beta 13 @@@ ROGUE MODE // 2024.04.04 @ 14:25:40 Player: djrubbie Result: Destroyed by WV-L55(R) with Subdweller Laser Performance ------------- Evolutions (0) 0 Regions Visited (2) 400 Robots Destroyed (24) 120 Value Destroyed (523) 523 Prototype IDs (0) 0 Alien Tech Used (0) 0 Bonus (0) 0 TOTAL SCORE: 1043 Bonus ------- None Cogmind --------- Core Integrity 0/250 Matter 189/300 Energy 250/250 System Corruption 0% Temperature Cool (6) Movement Treading (320) Ox2 Location -10/Subcaves Parts ------- > --- POWER (1) -------- Ion Engine > --- PROPULSION (2) --- Light Treads > --- UTILITY (2) ------ High-capacity Storage Unit Signal Interpreter > --- WEAPON (2) ------- Light Assault Rifle Battle Rifle > --- INVENTORY (20) --- Improved Terrain Scanner Small Laser Small Laser Peak State ------------ > --- POWER ------------ Ion Engine > --- PROPULSION ------- Aluminum Leg Aluminum Leg > --- UTILITY ---------- High-capacity Storage Unit Seismic Detector > --- WEAPON ----------- Light Assault Rifle Battle Rifle > --- INVENTORY -------- Ion Engine Light Treads Signal Interpreter Improved Terrain Scanner Small Laser Small Laser Battle Rifle [Rating: 9] Favorites ----------- Power Ion Engine Engine Ion Engine Propulsion Aluminum Leg Treads Light Treads Leg Aluminum Leg Utility Seismic Detector Device Seismic Detector Storage High-capacity Storage Unit Processor Signal Interpreter Weapon Light Assault Rifle Energy Gun Small Laser Ballistic Gun Light Assault Rifle Launcher Grenade Launcher Build | -11 -10 -10 ------- Run | Yrd Mat Sub Slots Evolved . | . . . Power . | . . . Propulsion . | . . . Utility . | . . . Weapon . | . . . Parts Attached 21 | 7 9 5 Power 5 | 1 3 1 Engine 5 | 1 3 1 Core . | . . . Reactor . | . . . Propulsion 5 | 2 2 1 Treads 3 | 2 . 1 Leg 2 | . 2 . Wheel . | . . . Hover . | . . . Flight . | . . . Utility 4 | 2 1 1 Device 1 | 1 . . Storage 2 | 1 1 . Processor 1 | . . 1 Hackware . | . . . Protection . | . . . Artifact . | . . . Weapon 7 | 2 3 2 Energy Gun 2 | 1 1 . Energy Cannon . | . . . Ballistic Gun 4 | 1 1 2 Ballistic Cannon . | . . . Launcher 1 | . 1 . Special Weapon . | . . . Impact Weapon . | . . . Slashing Weapon . | . . . Piercing Weapon . | . . . Special Melee Weapon . | . . . Unidentified Prototypes . | . . . Parts Lost 10 | . 5 5 Power 2 | . 1 1 Propulsion 4 | . 2 2 Utility 1 | . . 1 Weapon 3 | . 2 1 Highest Loss Streak 5 | . 3 5 To Critical Strikes . | . . . Average Slot Usage (%) 96 | . 98 95 Engine 13 | . 14 13 Treads 6 | . 9 3 Leg 18 | . 16 20 Device 12 | . 14 10 Storage 14 | . 14 14 Processor 1 | . . 2 Energy Gun 6 | . 10 1 Ballistic Gun 19 | . 13 26 Launcher 1 | . 3 . Naked Turns . | . . . Heaviest Build 51 | 12 51 49 Greatest Support 40 | 40 40 20 Greatest Overweight (x) 16 | . 16 2 Average Overweight (x) 1 | . 1 2 Largest Inventory Capacity 20 | 8 20 20 Average Capacity 17 | 7 16 20 Most Carried 7 | 5 5 7 Average Carried 4 | 2 4 5 Final Capacity 20 | 8 20 20 Final Carried 5 | 2 5 3 Class Distribution -------------------- 65% | Scavenger-Mutant 34% | Mutant Dominant Class ---------------- Mutant | -10/Materials Scavenger-Mutant | -10/Subcaves Resources | -11 -10 -10 ----------- Run | Yrd Mat Sub Matter Collected 540 | 291 236 13 Remotely . | . . . Salvage Created 733 | 145 543 45 Parts 52 | 7 40 5 Haulers Intercepted 1 | . 1 . Recyclers Shooed 2 | 1 1 . Parts Field Recycled . | . . . Retrieved Matter . | . . . Parts Self-Destructed 5 | . . 5 Prevented . | . . . Kills | -11 -10 -10 ------- Run | Yrd Mat Sub Combat Hostiles Destroyed 17 | . 16 1 Guns 14 | . 13 1 AOE 3 | . 3 . Classes Destroyed 8 | 2 5 1 Builder 1 | . 1 . Tunneler 3 | 2 1 . Hauler 1 | . 1 . Recycler 1 | 1 . . Watcher 1 | . 1 . Swarmer 6 | . 6 . Grunt 10 | . 10 . Subdweller 1 | . . 1 Best Kill Streak 7 | 3 7 1 Combat Bots Only 4 | . 4 1 Max Kills in Single Turn 2 | 1 2 1 Gunslinging . | . . . Exploded 1 | . 1 . Melee . | . . . Uniques/NPCs Destroyed . | . . . Combat | -11 -10 -10 -------- Run | Yrd Mat Sub Hostile Shots Fired 111 | . 89 22 Missed 25 | . 20 5 Damage Taken 1313 | . 861 452 Core 260 | . 155 105 Absorbed by Shields . | . . . Core Remaining (%) 100 | 100 . . Volleys Fired 86 | 7 55 24 Largest 2 | 2 2 2 Hottest 60 | 60 60 45 Shots Fired 163 | 12 103 48 Gun 158 | 12 98 48 Cannon . | . . . Launcher 5 | . 5 . Special . | . . . Kinetic 110 | 7 55 48 Thermal 48 | 5 43 . Explosive 5 | . 5 . Electromagnetic . | . . . Robot Hit Streak 13 | 9 9 13 Robot Miss Streak 3 | . 3 1 Penetration Max . | . . . Secondary Targets 1 | . 1 . Max Gunslinging Chain 1 | . 1 . Shots Hit Robots 106 | 9 70 27 Core Hits 37 | 4 30 3 Critical Kills . | . . . Critical Parts Destroyed . | . . . Critical Strikes . | . . . Melee Attacks . | . . . Impact . | . . . Slashing . | . . . Piercing . | . . . Sneak Attacks . | . . . Combat Hostiles . | . . . Follow-up Attacks . | . . . Damage Inflicted 1284 | 109 1076 99 Guns 916 | 109 708 99 Cannons . | . . . Explosions 365 | . 365 . Melee . | . . . Ramming 3 | . 3 . Kinetic 584 | 77 408 99 Thermal 332 | 32 300 . Explosive 365 | . 365 . Electromagnetic . | . . . Impact . | . . . Slashing . | . . . Piercing . | . . . Highest Corruption . | . . . Average Corruption . | . . . Corruption Purged . | . . . Corruption Blocked . | . . . Overload Shots . | . . . Overflow Damage 3 | . 3 . Projectiles . | . . . Explosions 3 | . 3 . Melee . | . . . Knockbacks . | . . . Impact . | . . . Kinetic . | . . . Secondary . | . . . Self-Inflicted Damage 79 | . 79 . Shots 4 | . 4 . Rammed 2 | . 2 . Targets Rammed 2 | . 2 . Kicked . | . . . Crushed . | . . . Highest Temperature 142 | . 142 . Average Temperature 54 | . 54 . Received Heat Transfer 441 | . 339 102 Siege Activations . | . . . Robots Corrupted . | . . . Combat Hostiles . | . . . Parts Fried . | . . . Impact Corruptions . | . . . Robots Melted . | . . . Combat Hostiles . | . . . Parts Melted 1 | . 1 . Heat Transferred 775 | 75 700 . Parts Sabotaged . | . . . Parts Stolen . | . . . Parts Stripped . | . . . Power Chain Reactions . | . . . Alert | -11 -10 -10 ------- Run | Yrd Mat Sub Peak Influence 272 | 15 272 . Initial 9 | . 9 . Average 120 | 4 135 . Maximum Alert Level 1 | . 1 . Low Security (%) 75 | 100 72 . Level 1 24 | . 27 . Level 2 . | . . . Level 3 . | . . . Level 4 . | . . . Level 5 . | . . . High Security . | . . . Max Security . | . . . Squads Dispatched 4 | . 4 . Investigation 2 | . 2 . Extermination . | . . . Reinforcement 2 | . 2 . Assault . | . . . Garrison . | . . . Intercept . | . . . Searches Triggered . | . . . Construction Impeded . | . . . Haulers Reinforced . | . . . Active Scanning Responses . | . . . Cargo Convoy Interrupts . | . . . Stealth | -11 -10 -10 --------- Run | Yrd Mat Sub Distress Signals . | . . . Communications Jammed . | . . . Distress Signals . | . . . Times Spotted 27 | . 25 2 Peak Tracking Total 5 | . 5 1 Tactical Retreats . | . . . Traps | -11 -10 -10 ------- Run | Yrd Mat Sub Traps Triggered 5 | . 3 2 Indirectly . | . . . Trap Hack Attempts . | . . . Triggered . | . . . Disarmed . | . . . Reprogrammed . | . . . Reused . | . . . Traps Extracted . | . . . Installed . | . . . Triggered . | . . . Machines | -11 -10 -10 ---------- Run | Yrd Mat Sub Machines Disabled 2 | . 2 . Max in Single Turn 1 | . 1 . Machines Repaired . | . . . Machines Dismantled . | . . . Machines Sabotaged . | . . . Overloaded Fab Kills . | . . . Hacking | -11 -10 -10 --------- Run | Yrd Mat Sub Machines Accessed 1 | . 1 . Terminals 1 | . 1 . Fabricators . | . . . Repair Stations . | . . . Recycling Units . | . . . Scanalyzers . | . . . Garrison Access . | . . . Total Hacks 1 | . 1 . Successful 1 | . 1 . Failed . | . . . Catastrophic . | . . . Database Lockouts . | . . . Manual . | . . . Terminals 1 | . 1 . Fabricators . | . . . Repair Stations . | . . . Recycling Units . | . . . Scanalyzers . | . . . Garrison Access . | . . . Terminal Hacks 1 | . 1 . Record 1 | . 1 . Fabricator Hacks . | . . . Repair Station Hacks . | . . . Recycling Unit Hacks . | . . . Scanalyzer . | . . . Garrison Access Hacks . | . . . Unauthorized Hacks . | . . . Terminals . | . . . Fabricators . | . . . Repair Stations . | . . . Recycling Units . | . . . Scanalyzers . | . . . Garrison Access . | . . . Data Cores Recovered . | . . . Used . | . . . Hacking Detections . | . . . Full Trace Events . | . . . Feedback Events . | . . . Feedback Blocked . | . . . Robot Schematics Acquired . | . . . Robots Built . | . . . Authchips . | . . . Time . | . . . Total Robot Build Rating . | . . . Part Schematics Acquired . | . . . Parts Built . | . . . Authchips . | . . . Time . | . . . Total Part Build Rating . | . . . Parts Repaired . | . . . Time . | . . . Parts Recycled . | . . . Recycled Matter . | . . . Retrieved Matter . | . . . Retrieved Components . | . . . Parts Scanalyzed . | . . . Part Schematics Acquired . | . . . Parts Damaged . | . . . Bothacking | -11 -10 -10 ------------ Run | Yrd Mat Sub Used RIF Installer . | . . . Robots Hacked . | . . . Non-combat . | . . . Combat . | . . . Robot Hacks Applied . | . . . Relay Couplers Released . | . . . Fabnet Peak Effective % . | . . . Robots Rewired . | . . . Allies Hacked . | . . . Hacks Repelled . | . . . Allies | -11 -10 -10 -------- Run | Yrd Mat Sub Total Allies . | . . . Largest Group . | . . . Highest-Rated Group . | . . . Highest-Rated Ally . | . . . Total Orders . | . . . Ally Attacks . | . . . Total Damage . | . . . Kills . | . . . Allies Corrupted . | . . . Allies Melted . | . . . Intel | -11 -10 -10 ------- Run | Yrd Mat Sub Robot Analysis Total . | . . . Derelict Logs Recovered . | . . . Drone Launches . | . . . Drone Recoveries . | . . . Exploration | -11 -10 -10 ------------- Run | Yrd Mat Sub Turns Passed 1755 | 112 910 733 Spaces Moved 619 | 59 317 243 Core 18 | 15 3 . Treads 224 | 44 133 47 Legs 377 | . 181 196 Wheels . | . . . Hover . | . . . Flight . | . . . Fastest Speed 50 | 50 160 260 Average Speed 235 | 132 227 271 Slowest Speed 850 | 160 850 320 Overloaded Moves . | . . . Propulsion Burnouts . | . . . Robots Hopped . | . . . Cave-ins Triggered . | . . . Exploration Rate (%) 25 | 4 60 13 Regions Visited 2 Branch Regions 1 Pre-discovered Areas . | . . . Known Exits Taken . | . . . Unknown Exits Taken 2 | 1 1 . Scrap Searched 1 | . . 1 Spaces Dug . | . . . Terrain Destroyed 23 | . 23 . Melee . | . . . Projectile . | . . . AOE 23 | . 23 . Terrain Rammed . | . . . Walls Destroyed . | . . . Machines Disabled . | . . . Actions | -11 -10 -10 --------- Run | Yrd Mat Sub Total 762 | 81 407 274 Wait 13 | . 13 . Move 617 | 58 316 243 Hop . | . . . Pick Up 21 | 9 10 2 Fast Attach . | . . . Attach 16 | 7 5 4 Detach . | . . . Swap 5 | . 4 1 Drop 2 | . 2 . Fire 86 | 7 55 24 Melee . | . . . Ram . | . . . Kick . | . . . Crush 2 | . 2 . Escape Stasis . | . . . Rewire . | . . . Trap . | . . . Miscellaneous . | . . . Route ------- -11/Scrapyard -10/Materials (discovered 2 exits: [*Min] / [*Sub]) -10/Subcaves History --------- Turn | Location | Event 9 | -11/Scrapyard | Discovered new exit (range 16) 113 | -11/Scrapyard | Entered Materials 233 | -10/Materials | Discovered new exit (range 6) 304 | -10/Materials | Build established: Mutant 471 | -10/Materials | Lost 3 parts (1p2n) 811 | -10/Materials | Core integrity fell below 50% 882 | -10/Materials | Build established: Scavenger-Mutant 951 | -10/Materials | Discovered new exit (range 10) 1023 | -10/Materials | Entered Subcaves 1084 | -10/Subcaves | A swath of the cavern ceiling suddenly collapsed 1119 | -10/Subcaves | Shifting Twisted Machinery released Sub. Beam Cannon 1581 | -10/Subcaves | Core integrity fell below 20% 1623 | -10/Subcaves | Lost 5 parts (1p2n1u1w) 1756 | -10/Subcaves | Destroyed by WV-L55(R) with Subdweller Laser Last Messages --------------- Searching scrap... Found Battle Rifle. Found 21 Matter. Acquired 3 matter. Acquired Battle Rifle. Sub. Beam Cannon falls loose from the Twisted Machinery. Acquired 10 matter. Triggered Shrapnel Trap. An expanding cloud of shrapnel blasts out in all directions. Triggered Piercing Trap. Spikes shoot up from the floor. Critical hit (Impale). Aluminum Leg destroyed. Battle Rifle destroyed. Ion Engine destroyed. Seismic Detector destroyed. WV-466(R) destroyed. Subatomizers dissect the Sub. Laser. Map ----- +----------------------------------------------------+ | ?????????????????????????????????????????????????? | | ?????????????????????????????????????????????????? | | ?????????????????????????????????????????????????? | | ?????????????????????????????????????????????????? | | ?????????????????????????????????????????????????? | | ?????????????????????????????????????????????????? | | ?????????????????????????????????????????????????? | | ?????????????????????????????????????????????????? | | ?????????????????????????????????????????????????? | | ?????????????????????????????????????????????????? | | ?????????????????????????????????????????????????? | | ??????????????????????##??#####???##?????????????? | | ????????????????????###"### " ####"#?????????????? | | ???????????????????"" "" "" ""#?????????????? | | ????????????????????""" " "" "#??????????????? | | ????????????????????# """" "#??????????????? | | ?????????????????????# """ ##??????????????? | | ????????????????????##"" " &! ##??????????????? | | ???????????????????"""" ""&[ ##?????????????? | | ???????????????????""###"""%&& "##????????????? | | ???????????????????????# ""& ""###????????### | | ???????????????????????#" ""### "" ##???### # | | ??????????????????????##""###?## ##?# | | ??????????????????????# "#???## " ## | | ??????????????????????## " ##???##### | | ???????????????????????#"@ ##??????# #? | | ???????????????????????# #??????# ## ##? | | ???????????????????????## #??????### #?? ##?? | | ????????????????????????#R #??????### #???##??? | | ????????????????????????## ##??##### # #???????? | | ????????????????????????## #??# #???????? | | ????????????????????????# ##### # #???????? | | ????????????????????????### # ## ## #####???????? | | ?????????????????????????#"# # ##???????????? | | ?????????????????????????#""## # # #????????????? | | ????????????????????????#"?#?###"""######????????? | | ????????????????????????##?????##""#?# ##???????? | | ??????????????????????????? ????#"##?# ##??????? | | ??????????????????????????? ???###"#?## #??????? | | ??????????????????????????? ##?#"#"##### ##???### | | ??????????????????????????? ??#""#"# # #??## # | | ???????????????????????????? ??###"##" #### | | ???????????????????????????? ????#"#" | | ???????????????????????????? ##??#""# | | ???????????????????????????## #??###### | | ???????????????????????????? #???????# #### | | ???????????????????????????## ??????## #?## | | ???????????????????????????# ?????## ### | | ????????????????????????????########## | | ????????????????????????????##"## # | +----------------------------------------------------+ Best States ------------- Heat Dissipation 25 Energy Generation 10 Energy Capacity 250 Matter Stores 300 Matter Capacity 300 Sight Range 16 Terrain Scan Density 10 Evasion (%) 50 Recoil Reduction 2 Item Schematics ----------------- None Robot Schematics ------------------ None Fabricated ------------ Nothing Alien Tech Used ----------------- None Achievements -------------- None Challenges ------------ None Game ------ Seed ChromaticRelayTendrils Manual? 0 Play Time 00:13:55 Cumulative 8.5 hours Start 2024.04.04 @ 00:24:49 End 2024.04.04 @ 14:25:40 Sessions 2 Manual Loads 0 Difficulty Rogue Special Mode None Game No. 11 Rogue 11 Adventurer 0 Explorer 0 Win Type - Total 0 Types 0/0/0/0/0/0/0/0/0 Lore% 11 Gallery% 10 Achievement% 10 Wizard Run 0 Options --------- Layout 1 ASCII 0 Keyboard 0 Movement Mouse Keybinds 0 Fullscreen 0 Font 28/SmallcapsGlow Map View 50x35 Zoom Use 0% Tactical HUD 0 Map Filters NONE Filters NONE Steam 1 RUN: c367796d-40a8-4d4e-9ae6-d03fadacee5f